[Event "Frauenbundesliga 2023-24"]
[Site "Deizisau"]
[Date "2024.03.23"]
[Round "7.1"]
[White "Rogule, Laura"]
[Black "Klek, Hanna Marie"]
[Result "1-0"]
[ECO "E04"]
[WhiteElo "2277"]
[BlackElo "2287"]
[Annotator "RC"]
[PlyCount "57"]
[EventDate "2023.10.09"]
[EventType "team-tourn"]
[EventCountry "GER"]
[SourceTitle "playchess.com"]
[Source "ChessBase"]
[SourceQuality "1"]
[WhiteTeam "SG 1871 Löberitz"]
[BlackTeam "Schachfreunde Deizisau"]
[TimeControl "40/5400+30:1800+30"]

1. d4 {[%emt 0:00:05]} Nf6 {[%emt 0:00:05]} 2. c4 {[%emt 0:00:19]} e6 {[%emt 0:00:06]} 3. Nf3 {[%emt 0:01:57]} d5 {[%emt 0:00:27]} 4. g3 {[%emt 0:00:48]} dxc4 {[%emt 0:00:10]} 5. Bg2 {[%emt 0:02:00]} c6 {[%emt 0:00:21]} 6. Ne5 Bb4+ {[%emt 0:00:30]} 7. Bd2 Be7 {[%emt 0:00:30]} 8. Bg5 Nd5 {[%emt 0:00:30]} 9. Bxe7 Qxe7 {[%emt 0:00:30]} 10. Nxc4 O-O {[%emt 0:00:30]} 11. O-O Rd8 {[%emt 0:00:30]} 12. Qb3 b5 {[%emt 0:00:30]} 13. Ne5 c5 {[%emt 0:00:30]} 14. dxc5 Qxc5 {[%emt 0:00:30]} 15. Nc3 Bb7 {[%emt 0:00:30]} 16. Qxb5 Qe7 {[%emt 0:00:30]} 17. Rfd1 Na6 {[%emt 0:00:30]} 18. Nxd5 exd5 {[%emt 0:00:30]} 19. Nc6 Bxc6 {[%emt 0:00:30]} 20. Qxc6 Nb4 {[%emt 0:00:30]} 21. Qa4 Rac8 {[%emt 0:00:30]} 22. Rac1 Rxc1 {[%emt 0:00:30]} 23. Rxc1 d4 {[%emt 0:00:30]} 24. Bf1 Qg5 {[%emt 0:00:30]} 25. Rc4 a5 {[%emt 0:00:30]} 26. Rxd4 Rb8 {[%emt 0:00:30]} 27. e3 h5 {[%emt 0:00:30]} 28. a3 Na2 {[%emt 0:00:30]} 29. Qc2 1-0

[Event "Frauenbundesliga 2023-24"]
[Site "Deizisau"]
[Date "2024.03.23"]
[Round "7.2"]
[White "Mkrtchian, Lilit"]
[Black "Berzina, Ilze"]
[Result "1/2-1/2"]
[ECO "E12"]
[WhiteElo "2378"]
[BlackElo "2150"]
[Annotator "RC"]
[PlyCount "35"]
[EventDate "2023.10.09"]
[EventType "team-tourn"]
[EventCountry "GER"]
[SourceTitle "playchess.com"]
[Source "ChessBase"]
[SourceQuality "1"]
[WhiteTeam "Schachfreunde Deizisau"]
[BlackTeam "SG 1871 Löberitz"]
[TimeControl "40/5400+30:1800+30"]

1. Nf3 {[%emt 0:00:10]} Nf6 {[%emt 0:00:25]} 2. c4 {[%emt 0:01:00]} b6 3. Nc3 {[%emt 0:00:30]} Bb7 4. d4 {[%emt 0:00:30]} e6 5. a3 {[%emt 0:00:30]} Ne4 6. Nxe4 {[%emt 0:00:30]} Bxe4 7. Nd2 {[%emt 0:00:30]} Bb7 8. e4 {[%emt 0:00:30]} d5 9. cxd5 {[%emt 0:00:30]} exd5 10. e5 {[%emt 0:00:30]} Be7 11. Bd3 {[%emt 0:00:30]} c5 12. Qg4 {[%emt 0:00:30]} g6 13. h4 {[%emt 0:00:30]} Qd7 14. Qg3 {[%emt 0:00:30]} Nc6 15. Nf3 {[%emt 0:00:30]} Qe6 16. O-O {[%emt 0:00:30]} h6 17. Be3 {[%emt 0:00:30]} cxd4 18. Nxd4 {[%emt 0:00:30]} 1/2-1/2

[Event "Frauenbundesliga 2023-24"]
[Site "Deizisau"]
[Date "2024.03.23"]
[Round "7.3"]
[White "Endress, Anna"]
[Black "Nebolsina, Vera"]
[Result "1-0"]
[ECO "C54"]
[WhiteElo "2094"]
[BlackElo "2209"]
[Annotator "RC"]
[PlyCount "115"]
[EventDate "2023.10.09"]
[EventType "team-tourn"]
[EventCountry "GER"]
[SourceTitle "playchess.com"]
[Source "ChessBase"]
[SourceQuality "1"]
[WhiteTeam "SG 1871 Löberitz"]
[BlackTeam "Schachfreunde Deizisau"]
[TimeControl "40/5400+30:1800+30"]

1. e4 e5 2. Nf3 Nc6 3. Bc4 Nf6 4. d3 Bc5 5. O-O d6 6. c3 Bg4 7. h3 Bh5 8. Re1 a6 {[%emt 1:34:30]} 9. Bb3 {[%emt 1:35:00]} h6 10. Nbd2 Qd7 11. Nf1 g5 12. Ng3 Bg6 13. d4 Ba7 14. Ba4 b5 {[%emt 0:03:00]} 15. Bc2 g4 16. dxe5 Nh5 17. Nxh5 Bxh5 18. hxg4 Bxg4 {[%emt 0:02:00]} 19. exd6 O-O-O 20. Be3 Rhg8 21. Bxa7 Nxa7 22. Qd5 c6 23. Qd3 Bh5 {[%emt 0:02:30]} 24. Ne5 Qe6 25. f4 Rxd6 26. Qe3 Kb7 27. Bb3 Qf6 28. Bd1 Qh4 {[%emt 0:02:30]} 29. Bxh5 Qxh5 30. a4 Qh4 31. Rad1 Nc8 32. Rxd6 Nxd6 33. a5 Nc8 34. Rd1 {[%emt 0:12:30]} Rd8 35. Nd3 Kc7 36. Rd2 Qe7 {[%emt 0:04:00]} 37. f5 {[%emt 0:01:30]} c5 {[%emt 0:00:30]} 38. Qg3+ {[%emt 0:00:30]} Kb7 {[%emt 0:00:30]} 39. Re2 {[%emt 0:00:30]} c4 {[%emt 0:00:30]} 40. Nb4 {[%emt 0:00:30]} Rd1+ {[%emt 0:00:30]} 41. Kh2 {[%emt 0:30:30]} Nd6 {[%emt 0:30:30]} 42. e5 {[%emt 0:00:30]} Kc8 {[%emt 0:00:30]} 43. Qg4 {[%emt 0:00:30]} Ne8 {[%emt 0:00:30]} 44. f6+ {[%emt 0:00:30]} Qd7 {[%emt 0:00:30]} 45. Qxd7+ {[%emt 0:00:30]} Rxd7 {[%emt 0:00:30]} 46. Nxa6 {[%emt 0:00:30]} Ra7 {[%emt 0:00:30]} 47. Nc5 {[%emt 0:00:30]} Rc7 {[%emt 0:00:30]} 48. Na6 {[%emt 0:00:30]} Ra7 {[%emt 0:00:30]} 49. Nb4 {[%emt 0:00:30]} Nc7 {[%emt 0:00:30]} 50. a6 {[%emt 0:00:30]} Ne6 {[%emt 0:00:30]} 51. Rd2 {[%emt 0:00:30]} Kc7 {[%emt 0:00:30]} 52. Kg3 {[%emt 0:00:30]} Ra8 53. Rd5 Rg8+ 54. Kf3 Ng5+ 55. Ke3 Ne6 56. Rxb5 Rxg2 {[%emt 0:02:30]} 57. a7 Rg8 58. Nd5+ {[%emt 0:03:00]} 1-0

[Event "Frauenbundesliga 2023-24"]
[Site "Deizisau"]
[Date "2024.03.23"]
[Round "7.4"]
[White "Valkova, Angelika"]
[Black "Ter-Avetisjana, Agnesa Stepania"]
[Result "0-1"]
[ECO "D10"]
[WhiteElo "2021"]
[BlackElo "2114"]
[Annotator "RC"]
[PlyCount "106"]
[EventDate "2023.10.09"]
[EventType "team-tourn"]
[EventCountry "GER"]
[SourceTitle "playchess.com"]
[Source "ChessBase"]
[SourceQuality "1"]
[WhiteTeam "Schachfreunde Deizisau"]
[BlackTeam "SG 1871 Löberitz"]
[TimeControl "40/5400+30:1800+30"]

1. d4 {[%emt 0:00:04]} d5 {[%emt 0:00:06]} 2. c4 c6 3. cxd5 {[%emt 0:00:11]} cxd5 {[%emt 0:00:09]} 4. Bf4 {[%emt 0:00:05]} Qb6 {[%emt 0:08:46]} 5. Nc3 {[%emt 0:01:06]} Nf6 {[%emt 0:00:21]} 6. e3 {[%emt 0:01:45]} Bd7 {[%emt 0:03:15]} 7. Bd3 {[%emt 0:02:51]} e6 {[%emt 0:02:13]} 8. Nge2 {[%emt 0:04:54]} Nc6 {[%emt 0:08:47]} 9. O-O {[%emt 0:13:13]} Nb4 {[%emt 0:08:22]} 10. Bb1 {[%emt 0:02:45]} Be7 {[%emt 0:06:02]} 11. a3 {[%emt 0:05:51]} Nc6 {[%emt 0:00:55]} 12. Na4 {[%emt 0:11:38]} Qd8 {[%emt 0:01:16]} 13. Nec3 {[%emt 0:01:58]} O-O {[%emt 0:05:25]} 14. Nb5 {[%emt 0:07:10]} Na5 {[%emt 0:12:05]} 15. Nac3 {[%emt 0:07:21]} a6 {[%emt 0:08:18]} 16. Bc7 {[%emt 0:06:29]} Qc8 {[%emt 0:00:47]} 17. Bd6 {[%emt 0:01:11]} Bxd6 {[%emt 0:10:36]} 18. Nxd6 {[%emt 0:00:06]} Qc7 {[%emt 0:00:16]} 19. e4 {[%emt 0:00:17]} Qxd6 {[%emt 0:00:09]} 20. e5 {[%emt 0:00:15]} Qe7 {[%emt 0:00:01]} 21. exf6 {[%emt 0:09:38]} Qxf6 {[%emt 0:00:30]} 22. f4 {[%emt 0:01:07]} Nc6 {[%emt 0:07:17]} 23. Ne2 {[%emt 0:00:07]} h5 {[%emt 0:00:07]} 24. Qd3 {[%emt 0:03:24]} g6 {[%emt 0:00:54]} 25. Bc2 {[%emt 0:02:59]} Ne7 {[%emt 0:01:38]} 26. Nc3 {[%emt 0:00:57]} Rac8 {[%emt 0:01:55]} 27. Rad1 {[%emt 0:01:06]} Kg7 {[%emt 0:02:28]} 28. g3 {[%emt 0:02:43]} Rc7 {[%emt 0:06:09]} 29. Bb1 {[%emt 0:00:17]} Rfc8 {[%emt 0:00:25]} 30. Kg2 {[%emt 0:01:07]} Nf5 {[%emt 0:02:49]} 31. Ba2 {[%emt 0:03:09]} Nd6 {[%emt 0:01:13]} 32. Rf2 {[%emt 0:01:46]} Bb5 {[%emt 0:01:29]} 33. Qe3 {[%emt 0:02:13]} Bc6 {[%emt 0:01:09]} 34. Bb1 {[%emt 0:02:23]} Nb5 {[%emt 0:01:03]} 35. Na4 {[%emt 0:01:23]} Be8 {[%emt 0:00:01]} 36. Nc5 {[%emt 0:00:52]} Nxd4 {[%emt 0:00:57]} 37. Nxb7 {[%emt 0:00:38]} Rxb7 {[%emt 0:00:28]} 38. Rxd4 {[%emt 0:00:40]} Rc4 {[%emt 0:00:23]} 39. Rdd2 {[%emt 0:01:46]} Bc6 {[%emt 0:00:13]} 40. Qe2 {[%emt 0:02:06]} d4+ {[%emt 0:00:57]} 41. Kg1 {[%emt 0:05:45]} Rc1+ {[%emt 0:08:48]} 42. Rf1 {[%emt 0:00:14]} Rxf1+ {[%emt 0:02:34]} 43. Kxf1 {[%emt 0:04:16]} Rb3 {[%emt 0:08:06]} 44. Kg1 {[%emt 0:10:08]} Re3 {[%emt 0:06:57]} 45. Qxa6 {[%emt 0:05:46]} e5 {[%emt 0:06:41]} 46. Rf2 {[%emt 0:00:35]} Re1+ {[%emt 0:00:00]} 47. Rf1 {[%emt 0:00:06]} Rxf1+ {[%emt 0:00:00]} 48. Qxf1 {[%emt 0:00:25]} e4 {[%emt 0:00:00]} 49. Qf2 {[%emt 0:03:27]} Qd6 {[%emt 0:00:00]} 50. Kf1 {[%emt 0:01:00]} e3 {[%emt 0:00:26]} 51. Qe2 {[%emt 0:00:53]} Qd5 {[%emt 0:00:55]} 52. Ke1 {[%emt 0:00:23]} Qh1+ {[%emt 0:00:25]} 53. Qf1 {[%emt 0:00:05]} Qxh2 {[%emt 0:00:06]} 0-1

[Event "Frauenbundesliga 2023-24"]
[Site "Deizisau"]
[Date "2024.03.23"]
[Round "7.5"]
[White "Giebel, Christine"]
[Black "Gheng, Simona"]
[Result "1/2-1/2"]
[ECO "B22"]
[WhiteElo "1877"]
[BlackElo "1974"]
[Annotator "NA RC"]
[PlyCount "43"]
[EventDate "2023.10.09"]
[EventType "team-tourn"]
[EventCountry "GER"]
[SourceTitle "playchess.com"]
[Source "ChessBase"]
[SourceQuality "1"]
[WhiteTeam "SG 1871 Löberitz"]
[BlackTeam "Schachfreunde Deizisau"]
[TimeControl "40/5400+30:1800+30"]

1. e4 {[%emt 0:00:05]} c5 {[%emt 0:00:11]} 2. c3 {[%emt 0:00:07]} d6 {[%emt 0:00:46]} 3. d4 {[%emt 0:00:05]} cxd4 {[%emt 0:00:07]} 4. cxd4 {[%emt 0:00:06]} g6 {[%emt 0:01:26]} 5. Nc3 {[%emt 0:01:14]} Bg7 {[%emt 0:00:28]} 6. h3 {[%emt 0:04:40]} Nf6 7. Nf3 {[%emt 0:00:30]} a6 8. Bd3 {[%emt 0:00:30]} Nc6 9. Be3 {[%emt 0:00:30]} O-O 10. Qd2 {[%emt 0:00:30]} b5 11. Rc1 {[%emt 0:00:30]} Bb7 12. O-O {[%emt 0:00:30]} e6 13. Rfe1 {[%emt 0:00:30]} Rc8 14. Bg5 {[%emt 0:00:30]} Qd7 15. Bb1 {[%emt 0:00:30]} Na5 16. b3 {[%emt 0:00:30]} b4 17. Na4 {[%emt 0:00:30]} Rxc1 18. Qxc1 {[%emt 0:00:30]} Bc6 19. Nb2 {[%emt 0:00:30]} Qb7 20. Qf4 {[%emt 0:00:30]} e5 21. Qh4 {[%emt 0:00:30]} Nh5 22. d5 {[%emt 0:00:30]} 1/2-1/2

[Event "Frauenbundesliga 2023-24"]
[Site "Deizisau"]
[Date "2024.03.23"]
[Round "7.6"]
[White "Noppes, Marina"]
[Black "Schuster, Rebekka"]
[Result "1/2-1/2"]
[ECO "A96"]
[WhiteElo "1954"]
[BlackElo "1879"]
[Annotator "NA RC"]
[PlyCount "23"]
[EventDate "2023.10.09"]
[EventType "team-tourn"]
[EventCountry "GER"]
[SourceTitle "playchess.com"]
[Source "ChessBase"]
[SourceQuality "1"]
[WhiteTeam "Schachfreunde Deizisau"]
[BlackTeam "SG 1871 Löberitz"]
[TimeControl "40/5400+30:1800+30"]

1. d4 {[%emt 0:00:25]} e6 {[%emt 0:00:05]} 2. c4 {[%emt 0:00:17]} f5 {[%emt 0:00:06]} 3. Nc3 {[%emt 0:01:10]} Nf6 {[%emt 0:00:08]} 4. Nf3 {[%emt 0:00:26]} d6 {[%emt 1:32:11]} 5. g3 {[%emt 0:00:18]} Be7 {[%emt 0:00:00]} 6. Bg2 {[%emt 0:00:30]} O-O {[%emt 0:00:00]} 7. O-O {[%emt 0:00:30]} Nc6 {[%emt 0:00:00]} 8. d5 {[%emt 0:00:30]} Ne5 {[%emt 0:00:00]} 9. dxe6 {[%emt 0:00:30]} Bxe6 {[%emt 0:00:00]} 10. b3 {[%emt 0:00:30]} c6 {[%emt 0:00:00]} 11. Nd4 {[%emt 0:00:30]} Bd7 {[%emt 0:00:00]} 12. Qc2 {[%emt 0:00:30]} 1/2-1/2

[Event "Frauenbundesliga 2023-24"]
[Site "Deizisau"]
[Date "2024.03.23"]
[Round "7.7"]
[White "Roessler, Ulrike"]
[Black "Javakhishvili, Lela"]
[Result "0-1"]
[ECO "C54"]
[WhiteElo "2100"]
[BlackElo "2447"]
[Annotator "TA"]
[PlyCount "174"]
[EventDate "2023.10.09"]
[EventType "team-tourn"]
[EventCountry "GER"]
[SourceTitle "playchess.com"]
[Source "ChessBase"]
[SourceQuality "1"]
[WhiteTeam "SV Weißblau Allianz Leipzig"]
[BlackTeam "SK Schwäbisch Hall"]
[TimeControl "40/5400+30:1800+30"]

{[%evp 11,174,12,0,-9,48,55,50,-38,-33,-94,-96,-98,-85,-88,-83,-82,-96,-98,-93,-86,-70,-47,-59,-68,-39,-83,-83,-106,-85,-122,0,-79,-72,-107,-89,-82,-63,-59,-47,-61,-64,-48,-37,-53,-43,-66,-31,-15,0,-14,36,0,35,0,0,-116,12,7,16,-8,0,-283,-20,-16,-16,-20,-20,-16,-18,-8,-18,-8,-5,-8,-16,-22,-22,-81,-9,-13,0,0,0,-33,-27,-25,-17,-38,-47,-55,-37,-31,0,-38,-12,-25,0,-5,0,0,0,-4,0,0,8,0,0,-59,0,0,0,-51,-34,-70,-68,-68,-68,-68,-68,-67,-68,-81,-70,-110,-93,-97,-104,-108,-83,-112,-78,-113,-96,-88,-40,-148,-148,-268,-45,-50,-50,-50,-50,-225,-137,-124,-113,-219,-195,-428,-397,-700,-700,-647,-537,-541,-541,-500,-473,-727,-735,-599,-468,-1696,-1358]} 1. e4 {[%emt 0:00:02]} e5 {[%emt 0:00:13]} 2. Nf3 {[%emt 0:00:04]} Nc6 {[%emt 0:00:06]} 3. Bc4 {[%emt 0:00:02]} Bc5 {[%emt 0:01:12]} 4. c3 {[%emt 0:00:05]} Nf6 {[%emt 0:00:05]} 5. d4 {[%emt 0:00:02]} exd4 {[%emt 0:00:17]} 6. cxd4 {[%emt 0:00:03]} Bb4+ {[%emt 0:00:22]} 7. Nbd2 {[%emt 0:00:04]} O-O {[%emt 0:04:56]} (7... Bxd2+ $11 8. Nxd2 d5 9. exd5 Qe7+ 10. Be2 Nxd5) 8. d5 $14 {[%emt 0:01:20]} Ne7 {[%emt 0:06:10]} 9. e5 {[%emt 0:06:44]} (9. a3 $14 Bxd2+ 10. Nxd2) 9... Nfxd5 $15 {[%emt 0:02:51]} 10. Qb3 {[%emt 0:00:04]} (10. a3 $15 Bxd2+ 11. Bxd2) 10... c6 $17 {[%emt 0:02:02]} 11. O-O {[%emt 0:00:22]} d6 $1 {[%emt 0:04:41]} 12. a3 {[%emt 0:03:57]} Ba5 {[%emt 0:00:49]} 13. exd6 {[%emt 0:14:26]} Qxd6 {[%emt 0:00:41]} 14. Ne4 {[%emt 0:00:03]} Qc7 {[%emt 0:03:25]} 15. Qc2 {[%emt 0:02:14]} h6 {[%emt 0:08:21]} 16. b4 {[%emt 0:04:24]} Bb6 {[%emt 0:02:41]} 17. Bb2 {[%emt 0:00:12]} Bf5 {[%emt 0:09:42]} (17... Ng6 {simplifies} 18. Bxd5 cxd5 19. Qxc7 Bxc7 20. Nc3 Be6) 18. Bd3 {[%emt 0:01:04]} Rad8 {[%emt 0:04:16]} 19. Rac1 {[%emt 0:12:12]} Qc8 {[%emt 0:03:12]} 20. Rfe1 {[%emt 0:10:24]} Bc7 {[%emt 0:02:26]} (20... Nf4 $17 21. Qc3 f6 (21... Rxd3 22. Qxg7#)) 21. Nd4 {[%emt 0:06:11]} (21. Nh4 $1 $11) 21... Bg6 {[%emt 0:01:37]} 22. Ng3 {[%emt 0:05:25]} Bxd3 {[%emt 0:13:28]} 23. Qxd3 {[%emt 0:00:05]} Qg4 {[%emt 0:02:32]} 24. b5 {[%emt 0:10:51][%cal Rb5c6]} Bf4 {[%emt 0:02:59]} 25. Rc2 {[%emt 0:02:32][%cal Rb5c6]} cxb5 {[%emt 0:02:54]} 26. Qxb5 {[%emt 0:00:54]} b6 {[%emt 0:02:52]} 27. Rce2 {[%emt 0:00:37]} Bd6 {[%emt 0:00:59]} 28. Re4 {[%emt 0:02:52]} Qc8 {[%emt 0:02:27]} 29. Qb3 {[%emt 0:03:28] Wards off Nc3} Bc5 {[%emt 0:01:45]} 30. Qf3 {[%emt 0:01:41]} Kh7 {[%emt 0:04:16]} (30... f5 $11 31. Re6 Rf7) 31. Nh5 {[%emt 0:03:16][%cal Oh5g7]} Rg8 {[%emt 0:01:37]} 32. Nb3 {[%emt 0:04:52][%cal Ob3c5]} Qf5 {[%emt 0:03:02] aiming for ...Qxf3.} 33. Qe2 {[%emt 0:00:16]} (33. Nxc5 $11 bxc5 34. Qe2 (34. Rxe7 $2 {is the wrong capture.} Nxe7 35. Qe2 Ng6 $19)) 33... Ng6 {[%emt 0:01:52]} (33... Bxf2+ $1 $17 34. Qxf2 Qxh5) 34. Nxc5 $11 {[%emt 0:03:53]} bxc5 {[%emt 0:00:04]} 35. Ng3 {[%emt 0:00:14]} (35. h4 $5) 35... Qd7 {[%emt 0:01:56]} 36. h4 $2 {[%emt 0:00:13][%mdl 8192]} (36. Qf3 $11 {and White stays safe.}) 36... Ndf4 $2 {[%emt 0:00:53]} (36... f5 $1 $19 {[%cal Rf5e4]} 37. Rc4 Ndf4) 37. Rxf4 {[%emt 0:01:59]} Nxf4 {[%emt 0:00:07]} 38. Qe4+ {[%emt 0:00:02]} Ng6 {[%emt 0:00:27]} 39. h5 {[%emt 0:00:02] [#]} Rge8 $1 {[%emt 0:01:16]} 40. hxg6+ {[%emt 0:00:05]} fxg6 {[%emt 0:00:03]} 41. Be5 {[%emt 0:03:26]} Qd3 {[%emt 0:03:19]} 42. Qb7 {[%emt 0:02:07][%csl LRa7,LRg7]} Rd7 {[%emt 0:00:50] The board is on fire.} 43. Qb2 {[%emt 0:01:01]} c4 {[%emt 0:02:38] ...Qb3 would now be deadly.} 44. Re3 {[%emt 0:01:32]} (44. Rc1 $11 {keeps the balance.}) 44... Qd1+ {[%emt 0:03:11]} (44... c3 $17 45. Qxc3 Qxc3 46. Bxc3 Rxe3 47. fxe3 Rd3) 45. Nf1 {[%emt 0:01:51]} (45. Kh2 {is interesting.} Ree7 46. Qb8 Qg4 47. Re4) 45... Ree7 {[%emt 0:02:40]} 46. Qb4 {[%emt 0:05:12]} Qd5 {[%emt 0:01:50]} 47. Qe1 {[%emt 0:07:16]} Qc5 {[%emt 0:02:17]} 48. Qa1 {[%emt 0:00:50]} Rd3 {[%emt 0:03:04]} 49. Bd4 {[%emt 0:02:22]} Qd6 {[%emt 0:01:10]} 50. Be5 {[%emt 0:02:00]} Qd5 {[%emt 0:03:14] Strongly threatening ...Rxe3.} (50... Qb6 $5) 51. Bc3 {[%emt 0:01:36]} Rb7 {[%emt 0:01:23] Threatens to win with ...Rd1.} 52. Re5 {[%emt 0:03:14]} Qf7 {[%emt 0:00:38] Hoping for ...Rb3.} 53. Qe1 {[%emt 0:01:06]} Rd5 {[%emt 0:02:54]} 54. Re8 {[%emt 0:01:14] [#]} Rd1 $1 {[%emt 0:04:41]} 55. Qxd1 {[%emt 0:00:17]} Qxe8 {[%emt 0:00:01]} 56. Qd4 {[%emt 0:00:25]} Qe2 {[%emt 0:02:25]} 57. Nd2 {[%emt 0:00:58]} Qd3 {[%emt 0:01:31]} 58. Qe5 {[%emt 0:00:15]} (58. Nxc4 {simplifies} Qxd4 59. Bxd4 Rd7 60. Bb2) 58... Rd7 {[%emt 0:01:02]} 59. Qe6 {[%emt 0:03:05]} (59. f3 $11) 59... Qd5 {[%emt 0:01:08]} ({Black should play} 59... Qxc3 $15 60. Qxd7 Qc1+ 61. Kh2 (61. Nf1 $2 c3 $19) 61... c3) 60. Qe3 {[%emt 0:00:28]} Rb7 {[%emt 0:01:03]} 61. Kh2 {[%emt 0:00:36]} (61. f3 $11) 61... Qd6+ $15 {[%emt 0:00:32]} 62. Kg1 {[%emt 0:00:19]} Re7 {[%emt 0:00:52]} (62... Qxa3 {simplifies} 63. Nxc4 Qe7 64. Qxe7 Rxe7 65. Bd2 Rc7) 63. Ne4 $1 {[%emt 0:02:33]} Qxa3 {[%emt 0:00:46][%cal Oe7e4] ...Rxe4! is the strong threat.} 64. f3 $1 {[%emt 0:00:07]} Qd6 {[%emt 0:01:07]} 65. Qe1 {[%emt 0:00:40]} Qb6+ {[%emt 0:00:23]} 66. Kh2 {[%emt 0:00:16][%cal Oe4g5] Black must now prevent Ng5+!} Qc7+ {[%emt 0:00:18]} 67. Kh1 {[%emt 0:00:27]} Rd7 {[%emt 0:00:29]} 68. g3 {[%emt 0:01:22]} Qc6 {[%emt 0:00:56]} 69. Kg2 {[%emt 0:00:08]} Qd5 {[%emt 0:01:11]} 70. Qe3 {[%emt 0:00:54]} Rf7 {[%emt 0:00:50]} 71. g4 {[%emt 0:00:25]} Qd3 {[%emt 0:00:31]} 72. Qf2 {[%emt 0:00:24]} g5 {[%emt 0:00:47]} ({Better is} 72... Kg8 $17 73. Bb4 Rf4) 73. Qg3 {[%emt 0:00:30]} (73. Ba5 $15) 73... Rf4 $17 {[%emt 0:00:42]} 74. Qf2 {[%emt 0:00:23]} (74. Be1 $17 {was necessary.}) 74... Kg8 $2 {[%emt 0:00:34]} ({Black should try} 74... Rxe4 $19 75. fxe4 Qxc3 76. Qf5+ g6 (76... Kg8 $2 77. Qc8+ Kh7 78. Qf5+ g6 79. Qf7+ Qg7 80. Qxc4 $17) 77. Qf7+ Qg7 78. Qxc4 Qb7) 75. Bd2 $1 $15 {[%emt 0:00:18]} Rf7 {[%emt 0:00:14]} 76. Bb4 {[%emt 0:00:17]} Qd5 {[%emt 0:00:41]} 77. Nd6 $2 {[%emt 0:00:56]} (77. Qe1 $15) 77... Rf4 {[%emt 0:00:20]} 78. Ne4 {[%emt 0:00:09] [#]} a5 $1 {[%emt 0:00:16]} 79. Bd2 {[%emt 0:00:31] [#]} (79. Bc3 $17) 79... Rf7 $1 $19 {[%emt 0:00:09]} 80. Qb6 $2 {[%emt 0:00:04]} (80. Qe2 {keeps fighting.}) 80... Qd3 {[%emt 0:00:37]} 81. Qb8+ $2 {[%emt 0:00:56]} (81. Qf2 a4 82. Be3) 81... Rf8 {[%emt 0:00:29] Black is clearly winning.} 82. Qg3 {[%emt 0:00:10]} Qe2+ {[%emt 0:00:42]} 83. Qf2 {[%emt 0:00:21]} Qxf2+ {[%emt 0:00:09]} 84. Kxf2 {[%emt 0:00:02]} a4 {[%emt 0:00:05]} 85. Bb4 {[%emt 0:00:22]} (85. Bc1 $142) 85... Rb8 {[%emt 0:00:16]} 86. Bd6 {[%emt 0:00:41]} Rb3 {[%emt 0:00:21]} 87. Nd2 {[%emt 0:00:18] [#]} (87. Be5 $142) 87... c3 $1 {[%emt 0:01:35] Weighted Error Value: White=0.25 (precise) /Black=0.23 (precise) .  Loses game:     	White=2     	---        Missed win:     	---       	Black=2      Mistake:       	White=13    	Black=7      Inaccurate:     	White=11    	Black=7      OK:         	White=21    	Black=25     Best:        	White=7     	Black=6      Strong:       	White=3     	Black=2} 0-1

[Event "Frauenbundesliga 2023-24"]
[Site "Deizisau"]
[Date "2024.03.23"]
[Round "7.8"]
[White "Ambartsumova, Karina"]
[Black "Dwilewicz, Katarzyna"]
[Result "1/2-1/2"]
[ECO "E03"]
[WhiteElo "2418"]
[BlackElo "2117"]
[Annotator "TA"]
[PlyCount "67"]
[EventDate "2023.10.09"]
[EventType "team-tourn"]
[EventCountry "GER"]
[SourceTitle "playchess.com"]
[Source "ChessBase"]
[SourceQuality "1"]
[WhiteTeam "SK Schwäbisch Hall"]
[BlackTeam "SV Weißblau Allianz Leipzig"]
[TimeControl "40/5400+30:1800+30"]

{[%evp 15,67,-13,-28,-33,-34,-33,-43,-20,-33,-50,-55,-64,-39,-43,-51,-52,-26,-37,-39,-30,-23,-41,-17,-27,-24,-31,-29,-33,-13,-27,-16,-13,0,0,12,5,7,-12,-8,0,-10,-30,-19,-28,0,0,0,0,0,0,0,0,6,0]} 1. d4 {[%emt 0:00:16]} Nf6 {[%emt 0:00:16]} 2. Nf3 {[%emt 0:02:17]} e6 {[%emt 0:00:37]} 3. c4 {[%emt 0:01:03]} d5 {[%emt 0:00:33]} 4. g3 {[%emt 0:01:40]} dxc4 {[%emt 0:04:12]} 5. Qa4+ {[%emt 0:07:35]} Nbd7 {[%emt 0:02:33]} 6. Bg2 {[%emt 0:03:11]} a6 {[%emt 0:00:55]} 7. Qxc4 {[%emt 0:05:05]} b5 {[%emt 0:01:43]} 8. Qd3 {[%emt 0:14:06]} Bb7 {[%emt 0:01:35]} 9. O-O {[%emt 0:02:02]} c5 {[%emt 0:04:17]} 10. Nc3 {[%emt 0:05:59]} cxd4 {[%emt 0:15:05]} 11. Qxd4 {[%emt 0:02:19] Black is slightly better.} Bc5 {[%emt 0:00:44]} 12. Qf4 {[%emt 0:06:45]} h6 {[%emt 0:06:54]} 13. b3 {[%emt 0:06:55]} Qb6 {[%emt 0:03:48]} 14. Bb2 {[%emt 0:03:27]} O-O {[%emt 0:03:19]} 15. Ne1 {[%emt 0:05:45]} e5 {[%emt 0:06:50]} 16. Qf5 {[%emt 0:02:00]} Bxg2 {[%emt 0:07:33]} 17. Nxg2 {[%emt 0:05:13]} Rac8 {[%emt 0:03:42]} 18. e3 {[%emt 0:03:58][%cal Oc3d5]} Rfe8 {[%emt 0:05:03]} 19. Rfd1 {[%emt 0:01:43]} Qb7 {[%emt 0:09:15]} 20. Rac1 {[%emt 0:01:47]} Re6 {[%emt 0:04:23]} 21. Ne1 {[%emt 0:02:54]} g6 {[%emt 0:01:32]} 22. Qh3 {[%emt 0:02:15]} h5 {[%emt 0:01:22]} 23. Nd3 {[%emt 0:00:47]} Be7 {[%emt 0:03:19]} 24. Qg2 {[%emt 0:04:31]} Qxg2+ {[%emt 0:01:11]} 25. Kxg2 {[%emt 0:00:01][%cal Oc3d5]} Rec6 {[%emt 0:00:28]} 26. Ne2 {[%emt 0:04:39]} Bd6 {[%emt 0:05:41]} 27. Rxc6 {[%emt 0:01:46]} Rxc6 {[%emt 0:00:01]} 28. Rc1 {[%emt 0:00:24] Prevents Rc2.} Rxc1 {[%emt 0:00:13]} 29. Ndxc1 {[%emt 0:00:32]} Nd5 {[%emt 0:00:32]} 30. e4 {[%emt 0:01:11] The position is equal.} N5b6 {[%emt 0:01:54]} 31. f4 {[%emt 0:01:41]} f6 {[%emt 0:01:55]} 32. Nd3 {[%emt 0:00:22]} Kf7 {[%emt 0:00:16]} 33. Kf3 {[%emt 0:00:54]} Ke6 {[%emt 0:00:06]} 34. h3 {[%emt 0:00:36] Weighted Error Value: White=0.06 (flawless) /Black=0.07 (flawless) .  Inaccurate:     	---       	Black=2      OK:         	White=9     	Black=11} 1/2-1/2